[Event "January 2 Late 2024"]
[Site "https://www.chess.com"]
[Date "2024.01.02"]
[Round "4"]
[White "Chor, Kevin"]
[Black "Osmonbekov, Talaibek"]
[Result "0-1"]
[Board "105"]
[TimeControl "180+1"]
[WhiteFideId "2090740"]
[BlackFideId "2017253"]
[WhiteElo "2625"]
[BlackElo "2306"]
[WhiteTeam "USA"]
[BlackTeam "USA"]
[WhiteClock "0:00:20"]
[BlackClock "0:01:41"]

1. e4 {[%clk 0:03:00]}  c5 {[%clk 0:02:59]} 2. Nf3 {[%clk 0:03:00]}  d6 {[%clk 0:03:00]} 3. d4 {[%clk 0:03:00]}  cxd4 {[%clk 0:03:01]} 4. Nxd4 {[%clk 0:03:00]}  Nf6 {[%clk 0:03:01]} 5. Nc3 {[%clk 0:03:01]}  g6 {[%clk 0:03:02]} 6. Be3 {[%clk 0:03:00]}  Bg7 {[%clk 0:03:02]} 7. f3 {[%clk 0:02:58]}  O-O {[%clk 0:03:02]} 8. Qd2 {[%clk 0:02:58]}  Nc6 {[%clk 0:03:03]} 9. Bc4 {[%clk 0:02:58]}  Bd7 {[%clk 0:03:02]} 10. Bb3 {[%clk 0:02:59]}  Rc8 {[%clk 0:03:02]} 11. O-O-O {[%clk 0:02:57]}  Nxd4 {[%clk 0:03:01]} 12. Bxd4 {[%clk 0:02:58]}  b5 {[%clk 0:03:01]} 13. Nd5 {[%clk 0:02:31]}  Nxd5 {[%clk 0:03:00]} 14. Bxg7 {[%clk 0:02:27]}  Kxg7 {[%clk 0:03:01]} 15. exd5 {[%clk 0:02:23]}  a5 {[%clk 0:02:58]} 16. a3 {[%clk 0:02:22]}  Qb6 {[%clk 0:02:42]} 17. h4 {[%clk 0:02:11]}  Bf5 {[%clk 0:02:40]} 18. g4 {[%clk 0:01:56]}  a4 {[%clk 0:02:39]} 19. Bxa4 {[%clk 0:01:47]}  bxa4 {[%clk 0:02:31]} 20. gxf5 {[%clk 0:01:46]}  Rc4 {[%clk 0:02:31]} 21. h5 {[%clk 0:01:33]}  Rfc8 {[%clk 0:02:04]} 22. c3 {[%clk 0:01:29]}  Qb3 {[%clk 0:01:58]} 23. hxg6 {[%clk 0:01:20]}  Rxc3+ {[%clk 0:01:58]} 24. Kb1 {[%clk 0:01:20]}  hxg6 {[%clk 0:01:43]} 25. Qh6+ {[%clk 0:01:05]}  Kf6 {[%clk 0:01:43]} 26. Qh4+ {[%clk 0:00:37]}  Kg7 {[%clk 0:01:42]} 27. Qh7+ {[%clk 0:00:27]}  Kf6 {[%clk 0:01:42]} 28. fxg6 {[%clk 0:00:28]}  Qc2+ {[%clk 0:01:40]} 29. Ka1 {[%clk 0:00:22]}  Rxa3+ {[%clk 0:01:40]} 30. bxa3 {[%clk 0:00:23]}  Qc3+ {[%clk 0:01:40]} 31. Ka2 {[%clk 0:00:22]}  Qb3+ {[%clk 0:01:40]} 32. Ka1 {[%clk 0:00:19]}  Qxa3+ {[%clk 0:01:41]} 33. Kb1 {[%clk 0:00:19]}  Rb8+ {[%clk 0:01:41]} 34. Kc2 {[%clk 0:00:19]}  Rb2+ {[%clk 0:01:41]} 35. Kc1 {[%clk 0:00:20]}  Qa1# {[%clk 0:01:41]} 0-1

[Event "January 2 Late 2024"]
[Site "https://www.chess.com"]
[Date "2024.01.02"]
[Round "4"]
[White "Ehlvest, Jaan"]
[Black "Lopez Del Alamo, Antonio"]
[Result "1-0"]
[Board "106"]
[TimeControl "180+1"]
[WhiteFideId "4500016"]
[BlackFideId "2227339"]
[WhiteElo "2623"]
[BlackElo "2286"]
[WhiteTeam "USA"]
[BlackTeam "ESP"]
[WhiteClock "0:01:05"]
[BlackClock "0:00:17"]

1. e4 {[%clk 0:02:54]}  c5 {[%clk 0:02:58]} 2. Nf3 {[%clk 0:02:54]}  e6 {[%clk 0:02:56]} 3. c3 {[%clk 0:02:53]}  Nf6 {[%clk 0:02:48]} 4. e5 {[%clk 0:02:51]}  Nd5 {[%clk 0:02:48]} 5. d4 {[%clk 0:02:51]}  d6 {[%clk 0:02:46]} 6. c4 {[%clk 0:02:38]}  Nb6 {[%clk 0:02:38]} 7. exd6 {[%clk 0:02:18]}  Bxd6 {[%clk 0:02:34]} 8. dxc5 {[%clk 0:02:15]}  Bxc5 {[%clk 0:02:35]} 9. Qxd8+ {[%clk 0:02:13]}  Kxd8 {[%clk 0:02:36]} 10. Nc3 {[%clk 0:02:12]}  Bb4 {[%clk 0:02:24]} 11. Bd2 {[%clk 0:02:11]}  Nc6 {[%clk 0:02:17]} 12. a3 {[%clk 0:02:07]}  Bxc3 {[%clk 0:02:14]} 13. Bxc3 {[%clk 0:02:06]}  f6 {[%clk 0:02:13]} 14. O-O-O+ {[%clk 0:01:52]}  Ke7 {[%clk 0:02:11]} 15. Nd4 {[%clk 0:01:52]}  e5 {[%clk 0:01:56]} 16. Nxc6+ {[%clk 0:01:46]}  bxc6 {[%clk 0:01:57]} 17. Bb4+ {[%clk 0:01:45]}  Kf7 {[%clk 0:01:57]} 18. Rd6 {[%clk 0:01:40]}  Be6 {[%clk 0:01:46]} 19. Rxc6 {[%clk 0:01:34]}  Rhc8 {[%clk 0:01:45]} 20. Rxc8 {[%clk 0:01:33]}  Rxc8 {[%clk 0:01:44]} 21. b3 {[%clk 0:01:33]}  Nd5 {[%clk 0:00:48]} 22. Bd2 {[%clk 0:01:30]}  Ne7 {[%clk 0:00:43]} 23. Bd3 {[%clk 0:01:28]}  Nc6 {[%clk 0:00:43]} 24. Bc3 {[%clk 0:01:22]}  a5 {[%clk 0:00:42]} 25. Rd1 {[%clk 0:01:13]}  a4 {[%clk 0:00:34]} 26. b4 {[%clk 0:01:12]}  Nd4 {[%clk 0:00:33]} 27. Bxd4 {[%clk 0:01:06]}  exd4 {[%clk 0:00:27]} 28. c5 {[%clk 0:01:05]}  Bb3 {[%clk 0:00:17]} 29. Bc2 {[%clk 0:01:05]} 1-0

[Event "January 2 Late 2024"]
[Site "https://www.chess.com"]
[Date "2024.01.02"]
[Round "4"]
[White "Syaputra, Arifa Rizki"]
[Black "Dobrijevic, Milan"]
[Result "1-0"]
[Board "113"]
[TimeControl "180+1"]
[WhiteFideId "7105100"]
[BlackFideId "931632"]
[WhiteElo "2696"]
[BlackElo "2437"]
[WhiteTeam "INA"]
[BlackTeam "SRB"]
[WhiteClock "0:00:09"]
[BlackClock "0:00:23"]

1. e4 {[%clk 0:03:00]}  c5 {[%clk 0:02:57]} 2. Nf3 {[%clk 0:03:00]}  g6 {[%clk 0:02:53]} 3. c3 {[%clk 0:02:51]}  Nf6 {[%clk 0:02:52]} 4. e5 {[%clk 0:02:50]}  Nd5 {[%clk 0:02:52]} 5. d4 {[%clk 0:02:41]}  cxd4 {[%clk 0:02:53]} 6. cxd4 {[%clk 0:02:42]}  Bg7 {[%clk 0:02:53]} 7. Bc4 {[%clk 0:02:40]}  Nb6 {[%clk 0:02:52]} 8. Bb3 {[%clk 0:02:38]}  O-O {[%clk 0:02:52]} 9. O-O {[%clk 0:02:38]}  Nc6 {[%clk 0:02:50]} 10. Bf4 {[%clk 0:02:28]}  d6 {[%clk 0:02:49]} 11. exd6 {[%clk 0:02:28]}  Bg4 {[%clk 0:02:42]} 12. Re1 {[%clk 0:01:54]}  exd6 {[%clk 0:02:36]} 13. d5 {[%clk 0:01:24]}  Ne5 {[%clk 0:02:20]} 14. Bxe5 {[%clk 0:01:24]}  dxe5 {[%clk 0:02:16]} 15. Nc3 {[%clk 0:01:22]}  Qf6 {[%clk 0:02:09]} 16. h3 {[%clk 0:01:13]}  Bxf3 {[%clk 0:02:07]} 17. Qxf3 {[%clk 0:01:13]}  Qxf3 {[%clk 0:02:06]} 18. gxf3 {[%clk 0:01:14]}  Rfd8 {[%clk 0:02:00]} 19. Rad1 {[%clk 0:01:09]}  Rac8 {[%clk 0:01:59]} 20. Re4 {[%clk 0:00:51]}  f5 {[%clk 0:01:55]} 21. Re2 {[%clk 0:00:45]}  Bf6 {[%clk 0:01:31]} 22. Kg2 {[%clk 0:00:44]}  Kg7 {[%clk 0:01:31]} 23. Na4 {[%clk 0:00:25]}  Nc4 {[%clk 0:01:24]} 24. Rc2 {[%clk 0:00:19]}  Nd6 {[%clk 0:01:19]} 25. Rxc8 {[%clk 0:00:16]}  Rxc8 {[%clk 0:01:18]} 26. Nc3 {[%clk 0:00:17]}  a6 {[%clk 0:01:12]} 27. Kf1 {[%clk 0:00:17]}  Kf7 {[%clk 0:01:09]} 28. a3 {[%clk 0:00:17]}  Ke7 {[%clk 0:01:08]} 29. Ke2 {[%clk 0:00:18]}  e4 {[%clk 0:01:06]} 30. Rc1 {[%clk 0:00:13]}  exf3+ {[%clk 0:01:01]} 31. Kxf3 {[%clk 0:00:13]}  Ne4 {[%clk 0:00:55]} 32. Rc2 {[%clk 0:00:08]}  Bxc3 {[%clk 0:00:47]} 33. bxc3 {[%clk 0:00:08]}  Rxc3+ {[%clk 0:00:47]} 34. Rxc3 {[%clk 0:00:08]}  Nxc3 {[%clk 0:00:48]} 35. d6+ {[%clk 0:00:08]}  Kxd6 {[%clk 0:00:47]} 36. Bg8 {[%clk 0:00:09]}  Ke7 {[%clk 0:00:43]} 37. Ke3 {[%clk 0:00:05]}  Kf8 {[%clk 0:00:38]} 38. Bb3 {[%clk 0:00:04]}  Nb5 {[%clk 0:00:38]} 39. a4 {[%clk 0:00:04]}  Nd6 {[%clk 0:00:37]} 40. Kd4 {[%clk 0:00:04]}  Ne4 {[%clk 0:00:37]} 41. f3 {[%clk 0:00:03]}  Ng5 {[%clk 0:00:37]} 42. Bd5 {[%clk 0:00:03]}  b5 {[%clk 0:00:33]} 43. a5 {[%clk 0:00:03]}  Nxh3 {[%clk 0:00:32]} 44. Bb7 {[%clk 0:00:03]}  b4 {[%clk 0:00:28]} 45. Bxa6 {[%clk 0:00:03]}  b3 {[%clk 0:00:26]} 46. Bd3 {[%clk 0:00:03]}  Nf4 {[%clk 0:00:26]} 47. a6 {[%clk 0:00:03]}  b2 {[%clk 0:00:25]} 48. a7 {[%clk 0:00:03]}  Nxd3 {[%clk 0:00:24]} 49. a8=Q+ {[%clk 0:00:03]}  Kg7 {[%clk 0:00:24]} 50. Qb7+ {[%clk 0:00:04]}  Kh6 {[%clk 0:00:24]} 51. Kxd3 {[%clk 0:00:04]}  Kg5 {[%clk 0:00:23]} 52. Qxb2 {[%clk 0:00:04]}  h5 {[%clk 0:00:23]} 53. Ke2 {[%clk 0:00:05]}  h4 {[%clk 0:00:22]} 54. Kf2 {[%clk 0:00:06]}  Kh5 {[%clk 0:00:22]} 55. Qd2 {[%clk 0:00:06]}  g5 {[%clk 0:00:22]} 56. Kg2 {[%clk 0:00:06]}  g4 {[%clk 0:00:22]} 57. fxg4+ {[%clk 0:00:07]}  fxg4 {[%clk 0:00:23]} 58. Qd5+ {[%clk 0:00:08]}  Kg6 {[%clk 0:00:23]} 59. Qe5 {[%clk 0:00:08]}  Kh6 {[%clk 0:00:22]} 60. Qf5 {[%clk 0:00:09]}  h3+ {[%clk 0:00:22]} 61. Kg3 {[%clk 0:00:09]}  h2 {[%clk 0:00:23]} 62. Kxh2 {[%clk 0:00:09]} 1-0

[Event "January 2 Late 2024"]
[Site "https://www.chess.com"]
[Date "2024.01.02"]
[Round "4"]
[White "Suich, Peter D"]
[Black "Manolache, Marius"]
[Result "0-1"]
[Board "114"]
[TimeControl "180+1"]
[WhiteFideId "2050366"]
[BlackFideId "1201530"]
[WhiteElo "2435"]
[BlackElo "2673"]
[WhiteTeam "USA"]
[BlackTeam "ROU"]
[WhiteClock "0:00:00"]
[BlackClock "0:00:14"]

1. d4 {[%clk 0:03:00]}  Nf6 {[%clk 0:02:59]} 2. c4 {[%clk 0:03:01]}  e6 {[%clk 0:02:58]} 3. g3 {[%clk 0:03:01]}  c5 {[%clk 0:02:57]} 4. d5 {[%clk 0:03:01]}  exd5 {[%clk 0:02:57]} 5. cxd5 {[%clk 0:03:02]}  d6 {[%clk 0:02:57]} 6. Nc3 {[%clk 0:03:02]}  a6 {[%clk 0:02:58]} 7. a4 {[%clk 0:03:02]}  g6 {[%clk 0:02:58]} 8. Bg2 {[%clk 0:03:02]}  Bg7 {[%clk 0:02:59]} 9. Nf3 {[%clk 0:03:03]}  O-O {[%clk 0:02:58]} 10. O-O {[%clk 0:03:03]}  Re8 {[%clk 0:02:58]} 11. Bf4 {[%clk 0:03:03]}  Ne4 {[%clk 0:02:53]} 12. Nxe4 {[%clk 0:03:03]}  Rxe4 {[%clk 0:02:52]} 13. Nd2 {[%clk 0:03:04]}  Rb4 {[%clk 0:02:52]} 14. a5 {[%clk 0:03:01]}  g5 {[%clk 0:02:46]} 15. Be3 {[%clk 0:02:54]}  Bf5 {[%clk 0:02:41]} 16. Ra4 {[%clk 0:02:50]}  Rxb2 {[%clk 0:02:33]} 17. Nc4 {[%clk 0:02:36]}  Rb5 {[%clk 0:02:06]} 18. Qd2 {[%clk 0:02:22]}  h6 {[%clk 0:02:05]} 19. h4 {[%clk 0:02:11]}  f6 {[%clk 0:02:05]} 20. hxg5 {[%clk 0:02:02]}  hxg5 {[%clk 0:02:02]} 21. f4 {[%clk 0:01:47]}  g4 {[%clk 0:02:02]} 22. Bf2 {[%clk 0:01:47]}  Qe7 {[%clk 0:01:45]} 23. e4 {[%clk 0:01:39]}  Bh7 {[%clk 0:01:45]} 24. Re1 {[%clk 0:01:36]}  Nd7 {[%clk 0:01:44]} 25. e5 {[%clk 0:01:26]}  fxe5 {[%clk 0:01:42]} 26. fxe5 {[%clk 0:01:26]}  Nxe5 {[%clk 0:01:42]} 27. Nxe5 {[%clk 0:01:17]}  Bxe5 {[%clk 0:01:38]} 28. Rxg4+ {[%clk 0:01:17]}  Kh8 {[%clk 0:01:38]} 29. Qh6 {[%clk 0:01:08]}  Rg8 {[%clk 0:01:14]} 30. Rxg8+ {[%clk 0:01:04]}  Kxg8 {[%clk 0:01:12]} 31. Bh3 {[%clk 0:01:05]}  Qg7 {[%clk 0:01:04]} 32. Be6+ {[%clk 0:00:59]}  Kh8 {[%clk 0:01:04]} 33. Qh4 {[%clk 0:00:59]}  Bf6 {[%clk 0:01:00]} 34. Qf4 {[%clk 0:00:54]}  Be5 {[%clk 0:00:59]} 35. Qh4 {[%clk 0:00:29]}  Qf6 {[%clk 0:00:59]} 36. Qh5 {[%clk 0:00:25]}  Rb2 {[%clk 0:00:52]} 37. Qe8+ {[%clk 0:00:19]}  Kg7 {[%clk 0:00:52]} 38. Qd7+ {[%clk 0:00:20]}  Kg6 {[%clk 0:00:53]} 39. Rf1 {[%clk 0:00:19]}  Qf3 {[%clk 0:00:42]} 40. Qe8+ {[%clk 0:00:16]}  Kg7 {[%clk 0:00:38]} 41. Qe7+ {[%clk 0:00:15]}  Kh6 {[%clk 0:00:34]} 42. Qh4+ {[%clk 0:00:11]}  Kg7 {[%clk 0:00:33]} 43. Qe7+ {[%clk 0:00:11]}  Kh6 {[%clk 0:00:34]} 44. Qh4+ {[%clk 0:00:11]}  Kg6 {[%clk 0:00:34]} 45. g4 {[%clk 0:00:05]}  Qf4 {[%clk 0:00:15]} 46. Qh5+ {[%clk 0:00:05]}  Kg7 {[%clk 0:00:15]} 47. Qh3 {[%clk 0:00:00]}  Bg6 {[%clk 0:00:14]} 0-1

[Event "January 2 Late 2024"]
[Site "https://www.chess.com"]
[Date "2024.01.02"]
[Round "4"]
[White "Injac, Teodora"]
[Black "Seletsky, Grigory"]
[Result "1-0"]
[Board "116"]
[TimeControl "180+1"]
[WhiteFideId "932400"]
[BlackFideId "14112191"]
[WhiteElo "2659"]
[BlackElo "2424"]
[WhiteTeam "SRB"]
[BlackTeam "UKR"]
[WhiteClock "0:00:13"]
[BlackClock "0:00:00"]

1. d4 {[%clk 0:03:00]}  c5 {[%clk 0:02:57]} 2. d5 {[%clk 0:03:00]}  e5 {[%clk 0:02:57]} 3. e4 {[%clk 0:02:59]}  d6 {[%clk 0:02:58]} 4. Nc3 {[%clk 0:02:59]}  Nf6 {[%clk 0:02:58]} 5. Bb5+ {[%clk 0:02:57]}  Nbd7 {[%clk 0:02:58]} 6. a4 {[%clk 0:02:57]}  Be7 {[%clk 0:02:58]} 7. Nge2 {[%clk 0:02:56]}  O-O {[%clk 0:02:59]} 8. Ng3 {[%clk 0:02:56]}  g6 {[%clk 0:02:55]} 9. h4 {[%clk 0:02:54]}  Ne8 {[%clk 0:02:53]} 10. h5 {[%clk 0:02:44]}  Ng7 {[%clk 0:02:48]} 11. hxg6 {[%clk 0:02:32]}  fxg6 {[%clk 0:02:47]} 12. Qd2 {[%clk 0:02:22]}  Rf7 {[%clk 0:02:44]} 13. Qh6 {[%clk 0:02:06]}  Nf8 {[%clk 0:02:43]} 14. Be3 {[%clk 0:01:55]}  a6 {[%clk 0:02:42]} 15. Be2 {[%clk 0:01:52]}  Bd7 {[%clk 0:02:43]} 16. f4 {[%clk 0:01:22]}  exf4 {[%clk 0:02:41]} 17. Bxf4 {[%clk 0:01:23]}  b5 {[%clk 0:02:40]} 18. e5 {[%clk 0:01:15]}  dxe5 {[%clk 0:02:28]} 19. Bxe5 {[%clk 0:01:15]}  Bg5 {[%clk 0:02:28]} 20. Qh2 {[%clk 0:01:15]}  c4 {[%clk 0:01:15]} 21. Nge4 {[%clk 0:01:13]}  Be3 {[%clk 0:01:14]} 22. Rf1 {[%clk 0:00:36]}  Rxf1+ {[%clk 0:01:11]} 23. Bxf1 {[%clk 0:00:37]}  h5 {[%clk 0:00:53]} 24. Nf6+ {[%clk 0:00:36]}  Kf7 {[%clk 0:00:30]} 25. Nce4 {[%clk 0:00:27]}  Nf5 {[%clk 0:00:30]} 26. Be2 {[%clk 0:00:21]}  Qa5+ {[%clk 0:00:20]} 27. c3 {[%clk 0:00:21]}  Re8 {[%clk 0:00:19]} 28. g4 {[%clk 0:00:21]}  Rxe5 {[%clk 0:00:16]} 29. Qxe5 {[%clk 0:00:20]}  Qd8 {[%clk 0:00:07]} 30. gxf5 {[%clk 0:00:19]}  Bxf5 {[%clk 0:00:07]} 31. Nd6+ {[%clk 0:00:18]}  Kg7 {[%clk 0:00:04]} 32. Nxf5+ {[%clk 0:00:17]}  gxf5 {[%clk 0:00:02]} 33. Nxh5+ {[%clk 0:00:17]}  Kg6 {[%clk 0:00:03]} 34. Qxe3 {[%clk 0:00:15]}  Qh4+ {[%clk 0:00:03]} 35. Qf2 {[%clk 0:00:14]}  Qe4 {[%clk 0:00:00]} 36. O-O-O {[%clk 0:00:13]} 1-0

[Event "January 2 Late 2024"]
[Site "https://www.chess.com"]
[Date "2024.01.02"]
[Round "4"]
[White "Perossa, Nicolas"]
[Black "Janaszak, Dawid"]
[Result "0-1"]
[Board "119"]
[TimeControl "180+1"]
[WhiteFideId "2850520"]
[BlackFideId "1119206"]
[WhiteElo "2415"]
[BlackElo "2633"]
[WhiteTeam "ITA"]
[BlackTeam "POL"]
[WhiteClock "0:00:00"]
[BlackClock "0:01:46"]

1. e4 {[%clk 0:03:00]}  c6 {[%clk 0:02:58]} 2. Nc3 {[%clk 0:03:00]}  d5 {[%clk 0:02:59]} 3. Nf3 {[%clk 0:03:00]}  dxe4 {[%clk 0:02:59]} 4. Nxe4 {[%clk 0:03:00]}  Nf6 {[%clk 0:03:00]} 5. Qe2 {[%clk 0:02:59]}  Nxe4 {[%clk 0:03:00]} 6. Qxe4 {[%clk 0:02:59]}  Qd5 {[%clk 0:03:00]} 7. Qxd5 {[%clk 0:02:46]}  cxd5 {[%clk 0:03:01]} 8. d4 {[%clk 0:02:45]}  Bf5 {[%clk 0:02:57]} 9. c3 {[%clk 0:02:40]}  f6 {[%clk 0:02:57]} 10. Bf4 {[%clk 0:02:38]}  Nc6 {[%clk 0:02:57]} 11. Bb5 {[%clk 0:02:34]}  g5 {[%clk 0:02:56]} 12. Bg3 {[%clk 0:02:34]}  h5 {[%clk 0:02:57]} 13. h4 {[%clk 0:02:33]}  g4 {[%clk 0:02:57]} 14. Nd2 {[%clk 0:02:20]}  Bh6 {[%clk 0:02:57]} 15. Nf1 {[%clk 0:02:04]}  a6 {[%clk 0:02:53]} 16. Ne3 {[%clk 0:02:03]}  Be4 {[%clk 0:02:50]} 17. Bxc6+ {[%clk 0:01:52]}  bxc6 {[%clk 0:02:50]} 18. O-O {[%clk 0:01:45]}  a5 {[%clk 0:02:47]} 19. b3 {[%clk 0:01:43]}  a4 {[%clk 0:02:45]} 20. b4 {[%clk 0:01:42]}  a3 {[%clk 0:02:45]} 21. Rfe1 {[%clk 0:01:32]}  Kd7 {[%clk 0:02:44]} 22. Rad1 {[%clk 0:00:58]}  Rhg8 {[%clk 0:02:42]} 23. Kh2 {[%clk 0:00:58]}  Ra7 {[%clk 0:02:41]} 24. Rd2 {[%clk 0:00:32]}  Rb7 {[%clk 0:02:40]} 25. Rde2 {[%clk 0:00:19]}  Bd3 {[%clk 0:02:38]} 26. Rd2 {[%clk 0:00:19]}  Be4 {[%clk 0:02:39]} 27. Rde2 {[%clk 0:00:19]}  e6 {[%clk 0:02:40]} 28. Rd2 {[%clk 0:00:17]}  f5 {[%clk 0:02:38]} 29. Be5 {[%clk 0:00:13]}  f4 {[%clk 0:02:35]} 30. Nf1 {[%clk 0:00:13]}  g3+ {[%clk 0:02:34]} 31. Kg1 {[%clk 0:00:09]}  f3 {[%clk 0:02:32]} 32. Bxg3 {[%clk 0:00:07]}  Bxd2 {[%clk 0:02:29]} 33. Nxd2 {[%clk 0:00:08]}  fxg2 {[%clk 0:02:15]} 34. Nxe4 {[%clk 0:00:08]}  dxe4 {[%clk 0:02:16]} 35. Rxe4 {[%clk 0:00:08]}  Rb5 {[%clk 0:02:14]} 36. Kxg2 {[%clk 0:00:06]}  Rf5 {[%clk 0:02:15]} 37. Kh3 {[%clk 0:00:03]}  Rgf8 {[%clk 0:02:15]} 38. Re3 {[%clk 0:00:02]}  Rf3 {[%clk 0:02:14]} 39. Kg2 {[%clk 0:00:02]}  R3f5 {[%clk 0:02:12]} 40. Be5 {[%clk 0:00:02]}  Rg8+ {[%clk 0:02:12]} 41. Rg3 {[%clk 0:00:02]}  Rg4 {[%clk 0:02:11]} 42. f3 {[%clk 0:00:02]}  Rxg3+ {[%clk 0:01:58]} 43. Kxg3 {[%clk 0:00:03]}  Rf8 {[%clk 0:01:58]} 44. Kf2 {[%clk 0:00:04]}  Rg8 {[%clk 0:01:56]} 45. Bf4 {[%clk 0:00:04]}  Ke8 {[%clk 0:01:55]} 46. Bc1 {[%clk 0:00:05]}  Kf7 {[%clk 0:01:53]} 47. Bxa3 {[%clk 0:00:05]}  Ra8 {[%clk 0:01:54]} 48. Bc1 {[%clk 0:00:05]}  Rxa2+ {[%clk 0:01:55]} 49. Ke3 {[%clk 0:00:02]}  Rc2 {[%clk 0:01:55]} 50. Bd2 {[%clk 0:00:03]}  Kg6 {[%clk 0:01:55]} 51. Kd3 {[%clk 0:00:03]}  Ra2 {[%clk 0:01:56]} 52. Bg5 {[%clk 0:00:03]}  Rf2 {[%clk 0:01:53]} 53. f4 {[%clk 0:00:03]}  Kf5 {[%clk 0:01:52]} 54. c4 {[%clk 0:00:03]}  Rf3+ {[%clk 0:01:52]} 55. Kc2 {[%clk 0:00:03]}  Ke4 {[%clk 0:01:53]} 56. b5 {[%clk 0:00:02]}  Kxd4 {[%clk 0:01:48]} 57. bxc6 {[%clk 0:00:02]}  Rc3+ {[%clk 0:01:48]} 58. Kd2 {[%clk 0:00:02]}  Rxc4 {[%clk 0:01:49]} 59. Ke2 {[%clk 0:00:02]}  Ke4 {[%clk 0:01:47]} 60. Kf2 {[%clk 0:00:01]}  Rc2+ {[%clk 0:01:46]} 61. Kg3 {[%clk 0:00:02]}  Rxc6 {[%clk 0:01:47]} 62. Bf6 {[%clk 0:00:02]}  Rd6 {[%clk 0:01:46]} 63. Be5 {[%clk 0:00:02]}  Rd3+ {[%clk 0:01:46]} 64. Kg2 {[%clk 0:00:00]}  Kf5 {[%clk 0:01:46]} 0-1

[Event "January 2 Late 2024"]
[Site "https://www.chess.com"]
[Date "2024.01.02"]
[Round "4"]
[White "Antunez Soler, Luis"]
[Black "Sroczynski, Maciej"]
[Result "0-1"]
[Board "121"]
[TimeControl "180+1"]
[WhiteFideId "3513335"]
[BlackFideId "1121472"]
[WhiteElo "2612"]
[BlackElo "2406"]
[WhiteTeam "CUB"]
[BlackTeam "POL"]
[WhiteClock "0:00:05"]
[BlackClock "0:00:04"]

1. e4 {[%clk 0:02:59]}  c5 {[%clk 0:02:59]} 2. Nf3 {[%clk 0:02:59]}  d6 {[%clk 0:02:59]} 3. Bb5+ {[%clk 0:02:59]}  Bd7 {[%clk 0:02:58]} 4. Bxd7+ {[%clk 0:02:59]}  Qxd7 {[%clk 0:02:58]} 5. O-O {[%clk 0:03:00]}  Nc6 {[%clk 0:02:59]} 6. Re1 {[%clk 0:03:01]}  Nf6 {[%clk 0:02:59]} 7. c3 {[%clk 0:03:02]}  e6 {[%clk 0:02:59]} 8. d4 {[%clk 0:03:02]}  cxd4 {[%clk 0:03:00]} 9. cxd4 {[%clk 0:03:02]}  d5 {[%clk 0:03:01]} 10. e5 {[%clk 0:03:02]}  Ne4 {[%clk 0:03:01]} 11. a3 {[%clk 0:03:03]}  Be7 {[%clk 0:03:01]} 12. Nbd2 {[%clk 0:03:03]}  Nxd2 {[%clk 0:03:00]} 13. Bxd2 {[%clk 0:03:03]}  Rc8 {[%clk 0:02:58]} 14. Rc1 {[%clk 0:03:04]}  b5 {[%clk 0:02:58]} 15. Rc3 {[%clk 0:03:04]}  b4 {[%clk 0:02:57]} 16. Rd3 {[%clk 0:03:04]}  h6 {[%clk 0:02:28]} 17. h4 {[%clk 0:03:02]}  Qb7 {[%clk 0:02:23]} 18. Nh2 {[%clk 0:03:01]}  bxa3 {[%clk 0:02:18]} 19. bxa3 {[%clk 0:03:01]}  Qb2 {[%clk 0:02:18]} 20. Qg4 {[%clk 0:02:44]}  g6 {[%clk 0:02:05]} 21. Ree3 {[%clk 0:02:37]}  h5 {[%clk 0:01:55]} 22. Qf4 {[%clk 0:02:31]}  Nd8 {[%clk 0:01:09]} 23. Nf3 {[%clk 0:02:23]}  Rc4 {[%clk 0:01:05]} 24. Ng5 {[%clk 0:02:16]}  Qb1+ {[%clk 0:00:53]} 25. Kh2 {[%clk 0:02:15]}  Qd1 {[%clk 0:00:47]} 26. Rf3 {[%clk 0:02:03]}  Qe2 {[%clk 0:00:42]} 27. Bb4 {[%clk 0:01:47]}  Rxb4 {[%clk 0:00:39]} 28. axb4 {[%clk 0:01:46]}  O-O {[%clk 0:00:37]} 29. Rde3 {[%clk 0:01:36]}  Qc2 {[%clk 0:00:31]} 30. g4 {[%clk 0:01:36]}  hxg4 {[%clk 0:00:29]} 31. Qxg4 {[%clk 0:01:37]}  Bxb4 {[%clk 0:00:28]} 32. h5 {[%clk 0:01:17]}  Kg7 {[%clk 0:00:27]} 33. h6+ {[%clk 0:01:06]}  Kh8 {[%clk 0:00:26]} 34. Qf4 {[%clk 0:00:56]}  Be7 {[%clk 0:00:23]} 35. Rc3 {[%clk 0:00:55]}  Qf5 {[%clk 0:00:21]} 36. Qxf5 {[%clk 0:00:50]}  exf5 {[%clk 0:00:21]} 37. Nh3 {[%clk 0:00:50]}  Ne6 {[%clk 0:00:21]} 38. Rfd3 {[%clk 0:00:50]}  Bb4 {[%clk 0:00:19]} 39. Rc6 {[%clk 0:00:48]}  a5 {[%clk 0:00:19]} 40. Ra6 {[%clk 0:00:48]}  Kh7 {[%clk 0:00:18]} 41. Ng1 {[%clk 0:00:42]}  Kxh6 {[%clk 0:00:15]} 42. Rh3+ {[%clk 0:00:41]}  Kg5 {[%clk 0:00:15]} 43. Nf3+ {[%clk 0:00:40]}  Kf4 {[%clk 0:00:15]} 44. Kg2 {[%clk 0:00:24]}  g5 {[%clk 0:00:15]} 45. Rh6 {[%clk 0:00:19]}  g4 {[%clk 0:00:16]} 46. Nh4 {[%clk 0:00:16]}  Nxd4 {[%clk 0:00:15]} 47. Rhf6 {[%clk 0:00:16]}  Kxe5 {[%clk 0:00:15]} 48. Rh6 {[%clk 0:00:13]}  Rc8 {[%clk 0:00:10]} 49. Rh7 {[%clk 0:00:12]}  Rc7 {[%clk 0:00:10]} 50. Ng6+ {[%clk 0:00:12]}  fxg6 {[%clk 0:00:09]} 51. Rxc7 {[%clk 0:00:11]}  g5 {[%clk 0:00:09]} 52. Rg7 {[%clk 0:00:11]}  Bd2 {[%clk 0:00:04]} 53. Re7+ {[%clk 0:00:09]}  Kf4 {[%clk 0:00:04]} 54. Rd7 {[%clk 0:00:09]}  Nf3 {[%clk 0:00:03]} 55. Rxd5 {[%clk 0:00:09]}  Bb4 {[%clk 0:00:03]} 56. Rf6 {[%clk 0:00:05]}  Ke4 {[%clk 0:00:02]} 57. Rd8 {[%clk 0:00:04]}  Nh4+ {[%clk 0:00:02]} 58. Kf1 {[%clk 0:00:05]}  f4 {[%clk 0:00:02]} 59. Re8+ {[%clk 0:00:06]}  Kd5 {[%clk 0:00:02]} 60. Rf7 {[%clk 0:00:04]}  g3 {[%clk 0:00:02]} 61. fxg3 {[%clk 0:00:04]}  fxg3 {[%clk 0:00:03]} 62. Kg1 {[%clk 0:00:04]}  Bc5+ {[%clk 0:00:03]} 63. Kf1 {[%clk 0:00:04]}  g2+ {[%clk 0:00:04]} 64. Ke2 {[%clk 0:00:04]}  g1=Q {[%clk 0:00:04]} 65. Rd7+ {[%clk 0:00:05]}  Kc4 {[%clk 0:00:05]} 66. Rd1 {[%clk 0:00:05]}  Qf2# {[%clk 0:00:04]} 0-1